[Event "2. Itzehoer Schach Open"]
[Site "Itzehoe, Germany"]
[Date "2023.04.30"]
[Round "4.17"]
[White "Rick, Niklas Corvin"]
[Black "Thomsen, Flemming"]
[Result "1-0"]
[TimeControl "90 min / 40 Züge + 30 min + 30 Sek pro Zug"]
[WhiteElo "1672"]
[BlackElo "1517"]

1. d4 {[%clk 01:27:02]} {[%emt 00:03:57]} Nf6 {[%clk 01:30:51]} {[%emt
00:00:10]} 2. c4 {[%clk 01:25:08]} {[%emt 00:02:23]} e6 {[%clk 01:29:27]}
{[%emt 00:01:55]} 3. Nc3 {[%clk 01:24:25]} {[%emt 00:01:11]} d5 {[%clk
01:29:51]} {[%emt 00:00:07]} 4. cxd5 {[%clk 01:24:08]} {[%emt 00:00:46]} exd5
{[%clk 01:30:11]} {[%emt 00:00:11]} 5. Bg5 {[%clk 01:22:52]} {[%emt 00:01:45]}
c6 {[%clk 01:30:13]} {[%emt 00:00:29]} 6. e3 {[%clk 01:20:26]} {[%emt
00:02:56]} Nbd7 {[%clk 01:29:53]} {[%emt 00:00:50]} 7. Bd3 {[%clk 01:20:12]}
{[%emt 00:00:43]} Qb6 {[%clk 01:28:48]} {[%emt 00:01:36]} 8. Qc2 {[%clk
01:15:27]} {[%emt 00:05:14]} Bd6 {[%clk 01:27:38]} {[%emt 00:01:41]} 9. Nf3
{[%clk 01:13:40]} {[%emt 00:02:17]} O-O {[%clk 01:25:36]} {[%emt 00:02:31]} 10.
O-O {[%clk 01:11:19]} {[%emt 00:02:52]} h6 {[%clk 01:24:51]} {[%emt 00:01:16]}
11. Bh4 {[%clk 01:10:42]} {[%emt 00:01:05]} Re8 {[%clk 01:22:50]} {[%emt
00:02:33]} 12. Rab1 {[%clk 01:06:11]} {[%emt 00:05:00]} Qc7 {[%clk 01:22:19]}
{[%emt 00:01:01]} 13. b4 {[%clk 01:03:53]} {[%emt 00:02:48]} a6 {[%clk
01:21:34]} {[%emt 00:01:16]} 14. Bg3 {[%clk 00:59:24]} {[%emt 00:04:58]} Bxg3
{[%clk 01:18:25]} {[%emt 00:03:39]} 15. hxg3 {[%clk 00:58:28]} {[%emt
00:01:26]} Nf8 {[%clk 01:10:33]} {[%emt 00:08:23]} 16. a4 {[%clk 00:57:33]}
{[%emt 00:01:24]} Ng4 {[%clk 01:07:15]} {[%emt 00:03:48]} 17. Nxd5 {[%clk
00:55:25]} {[%emt 00:02:38]} Qd8 {[%clk 01:06:41]} {[%emt 00:01:04]} 18. Nc3
{[%clk 00:53:04]} {[%emt 00:02:51]} Rxe3 {[%clk 01:06:01]} {[%emt 00:01:10]} 19.
fxe3 {[%clk 00:51:20]} {[%emt 00:02:13]} Nxe3 {[%clk 01:06:20]} {[%emt
00:00:12]} 20. Qf2 {[%clk 00:51:29]} {[%emt 00:00:21]} Nxf1 {[%clk 01:06:30]}
{[%emt 00:00:20]} 21. Rxf1 {[%clk 00:51:34]} {[%emt 00:00:26]} Be6 {[%clk
01:06:11]} {[%emt 00:00:49]} 22. Ne5 {[%clk 00:39:52]} {[%emt 00:12:12]} Qc7
{[%clk 01:05:46]} {[%emt 00:00:55]} 23. Ne4 {[%clk 00:35:22]} {[%emt 00:04:59]}
Nd7 {[%clk 01:03:20]} {[%emt 00:02:56]} 24. Nxd7 {[%clk 00:33:24]} {[%emt
00:02:27]} Qxd7 {[%clk 01:03:36]} {[%emt 00:00:15]} 25. Nc5 {[%clk 00:33:31]}
{[%emt 00:00:23]} Qe7 {[%clk 01:02:58]} {[%emt 00:01:07]} 26. Nxe6 {[%clk
00:32:36]} {[%emt 00:01:25]} Qxe6 {[%clk 01:03:10]} {[%emt 00:00:19]} 27. Re1
{[%clk 00:29:50]} {[%emt 00:03:16]} Qd6 {[%clk 01:01:42]} {[%emt 00:01:59]} 28.
Bc4 {[%clk 00:27:08]} {[%emt 00:03:11]} Rf8 {[%clk 00:59:42]} {[%emt 00:02:28]}
29. Re8 {[%clk 00:22:41]} {[%emt 00:04:59]} Qxb4 {[%clk 00:58:36]} {[%emt
00:01:35]} 1-0

[Event "2. Itzehoer Schach Open"]
[Site "Itzehoe, Germany"]
[Date "2023.04.30"]
[Round "4.35"]
[White "Hielscher, Ursula"]
[Black "Baumann, Simon"]
[Result "1-0"]
[TimeControl "90 min / 40 Züge + 30 min + 30 Sek pro Zug"]
[WhiteElo "1702"]
[BlackElo "1289"]

1. d4 {[%clk 01:30:57]} {[%emt 00:00:02]} d5 {[%clk 01:30:57]} {[%emt
00:00:04]} 2. c4 {[%clk 01:31:23]} {[%emt 00:00:04]} e6 {[%clk 01:31:21]}
{[%emt 00:00:06]} 3. Nc3 {[%clk 01:31:42]} {[%emt 00:00:11]} Nf6 {[%clk
01:31:37]} {[%emt 00:00:13]} 4. Bg5 {[%clk 01:32:07]} {[%emt 00:00:05]} Nbd7
{[%clk 01:31:39]} {[%emt 00:00:28]} 5. e3 {[%clk 01:32:27]} {[%emt 00:00:10]}
c6 {[%clk 01:32:03]} {[%emt 00:00:07]} 6. Nf3 {[%clk 01:32:21]} {[%emt
00:00:36]} Qa5 {[%clk 01:32:21]} {[%emt 00:00:12]} 7. Bxf6 {[%clk 01:32:04]}
{[%emt 00:00:46]} Nxf6 {[%clk 01:32:39]} {[%emt 00:00:12]} 8. Nd2 {[%clk
01:32:16]} {[%emt 00:00:18]} Bb4 {[%clk 01:32:42]} {[%emt 00:00:28]} 9. Qc2
{[%clk 01:32:34]} {[%emt 00:00:12]} Bd7 {[%clk 01:31:54]} {[%emt 00:01:18]} 10.
Bd3 {[%clk 01:32:37]} {[%emt 00:00:27]} dxc4 {[%clk 01:29:41]} {[%emt
00:02:43]} 11. Nxc4 {[%clk 01:32:52]} {[%emt 00:00:16]} Qh5 {[%clk 01:30:00]}
{[%emt 00:00:11]} 12. a3 {[%clk 01:32:20]} {[%emt 00:01:02]} Bxc3+ {[%clk
01:29:57]} {[%emt 00:00:32]} 13. bxc3 {[%clk 01:32:37]} {[%emt 00:00:13]} O-O
{[%clk 01:28:22]} {[%emt 00:02:06]} 14. Qe2 {[%clk 01:30:47]} {[%emt 00:02:20]}
Qg5 {[%clk 01:27:55]} {[%emt 00:00:58]} 15. f4 {[%clk 01:29:34]} {[%emt
00:01:42]} Qg4 {[%clk 01:27:50]} {[%emt 00:00:36]} 16. Qxg4 {[%clk 01:29:40]}
{[%emt 00:00:24]} Nxg4 {[%clk 01:28:10]} {[%emt 00:00:10]} 17. h3 {[%clk
01:29:49]} {[%emt 00:00:21]} Nh6 {[%clk 01:28:24]} {[%emt 00:00:15]} 18. g4
{[%clk 01:29:33]} {[%emt 00:00:46]} f6 {[%clk 01:28:22]} {[%emt 00:00:32]} 19.
Rb1 {[%clk 01:29:07]} {[%emt 00:00:57]} b5 {[%clk 01:28:17]} {[%emt 00:00:34]}
20. Na5 {[%clk 01:29:16]} {[%emt 00:00:21]} a6 {[%clk 01:28:19]} {[%emt
00:00:28]} 21. Be4 {[%clk 01:29:24]} {[%emt 00:00:21]} Rac8 {[%clk 01:28:16]}
{[%emt 00:00:34]} 22. Nb7 {[%clk 01:29:39]} {[%emt 00:00:14]} Rc7 {[%clk
01:27:30]} {[%emt 00:01:16]} 23. Nc5 {[%clk 01:30:01]} {[%emt 00:00:08]} Bc8
{[%clk 01:26:21]} {[%emt 00:01:39]} 24. Kd2 {[%clk 01:25:57]} {[%emt 00:04:33]}
Rd8 {[%clk 01:26:11]} {[%emt 00:00:40]} 25. a4 {[%clk 01:25:58]} {[%emt
00:00:30]} e5 {[%clk 01:25:30]} {[%emt 00:01:11]} 26. fxe5 {[%clk 01:25:31]}
{[%emt 00:00:56]} fxe5 {[%clk 01:25:35]} {[%emt 00:00:25]} 27. Ke2 {[%clk
01:22:17]} {[%emt 00:03:43]} exd4 {[%clk 01:24:41]} {[%emt 00:01:25]} 28. cxd4
{[%clk 01:22:26]} {[%emt 00:00:21]} Re8 {[%clk 01:23:50]} {[%emt 00:01:21]} 29.
Rb3 {[%clk 01:18:33]} {[%emt 00:04:22]} Nf7 {[%clk 01:23:22]} {[%emt 00:00:58]}
30. axb5 {[%clk 01:17:22]} {[%emt 00:01:41]} axb5 {[%clk 01:23:01]} {[%emt
00:00:51]} 31. Rc1 {[%clk 01:16:17]} {[%emt 00:01:35]} Nd6 {[%clk 01:22:24]}
{[%emt 00:01:07]} 32. Bg2 {[%clk 01:11:25]} {[%emt 00:05:21]} Ra7 {[%clk
01:20:38]} {[%emt 00:02:17]} 33. Bxc6 {[%clk 01:07:28]} {[%emt 00:04:27]} Ra2+
{[%clk 01:20:59]} {[%emt 00:00:08]} 34. Ke1 {[%clk 01:05:43]} {[%emt 00:02:15]}
Rf8 {[%clk 01:19:37]} {[%emt 00:01:51]} 35. Bd5+ {[%clk 01:04:31]} {[%emt
00:01:42]} Kh8 {[%clk 01:19:17]} {[%emt 00:00:51]} 36. Nd3 {[%clk 01:04:43]}
{[%emt 00:00:18]} Re8 {[%clk 01:19:22]} {[%emt 00:00:25]} 37. Nf4 {[%clk
01:03:46]} {[%emt 00:01:27]} Rh2 {[%clk 01:19:07]} {[%emt 00:00:45]} 38. Kf1
{[%clk 01:01:16]} {[%emt 00:03:01]} Rf8 {[%clk 01:16:53]} {[%emt 00:02:44]} 39.
Kg1 {[%clk 01:00:40]} {[%emt 00:01:06]} Rd2 {[%clk 01:16:57]} {[%emt 00:00:25]}
40. Rf1 {[%clk 01:00:04]} {[%emt 00:01:05]} h6 {[%clk 01:15:45]} {[%emt
00:01:43]} 41. Ng6+ {[%clk 01:00:23]} {[%emt 00:00:11]} 1-0

[Event "2. Itzehoer Schach Open"]
[Site "Itzehoe, Germany"]
[Date "2023.04.30"]
[Round "4.2"]
[White "Wulf von Moers, Jens"]
[Black "Helmer, Jan"]
[Result "1/2-1/2"]
[TimeControl "90 min / 40 Züge + 30 min + 30 Sek pro Zug"]
[WhiteElo "2148"]
[BlackElo "2091"]

1. e4 {[%clk 01:30:56]} {[%emt 00:00:04]} c5 {[%clk 01:24:44]} {[%emt
00:06:13]} 2. Nc3 {[%clk 01:31:08]} {[%emt 00:00:21]} Nc6 {[%clk 01:25:04]}
{[%emt 00:00:10]} 3. f4 {[%clk 01:31:24]} {[%emt 00:00:13]} g6 {[%clk
01:25:32]} {[%emt 00:00:03]} 4. Nf3 {[%clk 01:31:46]} {[%emt 00:00:08]} Bg7
{[%clk 01:25:59]} {[%emt 00:00:04]} 5. Bb5 {[%clk 01:32:08]} {[%emt 00:00:07]}
Nd4 {[%clk 01:26:26]} {[%emt 00:00:03]} 6. O-O {[%clk 01:32:23]} {[%emt
00:00:13]} Nxb5 {[%clk 01:26:53]} {[%emt 00:00:04]} 7. Nxb5 {[%clk 01:32:41]}
{[%emt 00:00:12]} a6 {[%clk 01:27:21]} {[%emt 00:00:03]} 8. Nc3 {[%clk
01:32:51]} {[%emt 00:00:19]} e6 {[%clk 01:24:43]} {[%emt 00:03:09]} 9. d3
{[%clk 01:18:23]} {[%emt 00:14:58]} Ne7 {[%clk 01:25:02]} {[%emt 00:00:11]} 10.
Be3 {[%clk 01:18:00]} {[%emt 00:00:53]} d6 {[%clk 01:20:52]} {[%emt 00:04:40]}
11. d4 {[%clk 01:16:05]} {[%emt 00:02:25]} b6 {[%clk 01:19:34]} {[%emt
00:01:49]} 12. Qd2 {[%clk 01:12:11]} {[%emt 00:04:23]} Bb7 {[%clk 01:19:38]}
{[%emt 00:00:27]} 13. Rad1 {[%clk 01:12:17]} {[%emt 00:00:23]} O-O {[%clk
01:13:38]} {[%emt 00:06:30]} 14. Qf2 {[%clk 01:10:00]} {[%emt 00:02:46]} Qc7
{[%clk 01:11:29]} {[%emt 00:02:40]} 15. a4 {[%clk 00:59:55]} {[%emt 00:10:35]}
Rac8 {[%clk 01:11:00]} {[%emt 00:01:00]} 16. Rfe1 {[%clk 00:57:18]} {[%emt
00:03:07]} d5 {[%clk 01:02:52]} {[%emt 00:08:38]} 17. e5 {[%clk 00:38:58]}
{[%emt 00:18:50]} Nf5 {[%clk 01:01:43]} {[%emt 00:01:39]} 18. Bc1 {[%clk
00:38:05]} {[%emt 00:01:23]} Rfd8 {[%clk 01:01:34]} {[%emt 00:00:39]} 19. g4
{[%clk 00:35:46]} {[%emt 00:02:49]} Nxd4 {[%clk 01:02:03]} {[%emt 00:00:01]} 20.
Nxd4 {[%clk 00:34:38]} {[%emt 00:01:38]} cxd4 {[%clk 01:02:32]} 21. Ne2 {[%clk
00:26:07]} {[%emt 00:09:02]} Qxc2 {[%clk 01:02:31]} {[%emt 00:00:31]} 22. Nxd4
{[%clk 00:26:00]} {[%emt 00:00:36]} Qxf2+ {[%clk 01:01:54]} {[%emt 00:01:07]}
23. Kxf2 {[%clk 00:26:24]} {[%emt 00:00:06]} Bc6 {[%clk 00:55:05]} {[%emt
00:07:20]} 24. b3 {[%clk 00:26:20]} {[%emt 00:00:34]} Bd7 {[%clk 00:55:25]}
{[%emt 00:00:08]} 25. Ba3 {[%clk 00:24:54]} {[%emt 00:01:58]} Bf8 {[%clk
00:54:25]} {[%emt 00:01:31]} 26. Bxf8 {[%clk 00:24:17]} {[%emt 00:01:06]} Kxf8
{[%clk 00:54:53]} {[%emt 00:00:02]} 27. Rc1 {[%clk 00:15:00]} {[%emt 00:09:48]}
Rc5 {[%clk 00:51:31]} {[%emt 00:03:52]} 28. Ke3 {[%clk 00:10:21]} {[%emt
00:05:09]} Rdc8 {[%clk 00:51:43]} {[%emt 00:00:19]} 29. Kd2 {[%clk 00:10:44]}
{[%emt 00:00:07]} Kg7 {[%clk 00:50:37]} {[%emt 00:01:36]} 30. g5 {[%clk
00:10:44]} {[%emt 00:00:29]} h6 {[%clk 00:50:51]} {[%emt 00:00:17]} 31. h4
{[%clk 00:10:56]} {[%emt 00:00:17]} hxg5 {[%clk 00:51:14]} {[%emt 00:00:07]} 32.
hxg5 {[%clk 00:10:59]} {[%emt 00:00:27]} a5 {[%clk 00:45:50]} {[%emt 00:05:55]}
33. Rh1 {[%clk 00:10:47]} {[%emt 00:00:42]} Rxc1 {[%emt 00:02:32]} 1/2-1/2

[Event "2. Itzehoer Schach Open"]
[Site "Itzehoe, Germany"]
[Date "2023.04.30"]
[Round "4.4"]
[White "Roebers, Jan"]
[Black "Kosanke, Stefan"]
[Result "0-1"]
[TimeControl "90 min / 40 Züge + 30 min + 30 Sek pro Zug"]
[WhiteElo "2083"]
[BlackElo "1933"]

1. e4 {[%clk 01:30:51]} {[%emt 00:00:08]} e5 {[%clk 01:30:50]} {[%emt
00:00:11]} 2. Nf3 {[%clk 01:31:00]} {[%emt 00:00:20]} Nf6 {[%clk 01:31:14]}
{[%emt 00:00:06]} 3. d4 {[%clk 01:29:38]} {[%emt 00:01:52]} exd4 {[%clk
01:29:33]} {[%emt 00:02:12]} 4. e5 {[%clk 01:28:46]} {[%emt 00:01:22]} Qe7
{[%clk 01:27:35]} {[%emt 00:02:28]} 5. c3 {[%clk 01:16:04]} {[%emt 00:13:12]}
d6 {[%clk 01:20:54]} {[%emt 00:07:11]} 6. cxd4 {[%clk 01:14:30]} {[%emt
00:02:04]} dxe5 {[%clk 01:16:01]} {[%emt 00:05:23]} 7. Nxe5 {[%clk 01:09:54]}
{[%emt 00:05:06]} Ng4 {[%clk 01:08:09]} {[%emt 00:08:22]} 8. Qe2 {[%clk
00:56:51]} {[%emt 00:13:32]} Nxe5 {[%clk 01:06:34]} {[%emt 00:02:05]} 9. dxe5
{[%clk 00:50:44]} {[%emt 00:06:37]} Nc6 {[%clk 01:05:46]} {[%emt 00:01:19]} 10.
f4 {[%clk 00:47:35]} {[%emt 00:03:39]} Bf5 {[%clk 01:04:20]} {[%emt 00:01:56]}
11. Na3 {[%clk 00:42:00]} {[%emt 00:06:05]} Qb4+ {[%clk 00:54:24]} {[%emt
00:10:25]} 12. Kf2 {[%clk 00:39:11]} {[%emt 00:03:19]} Bc5+ {[%clk 00:52:06]}
{[%emt 00:02:48]} 13. Kg3 {[%clk 00:35:53]} {[%emt 00:03:48]} g5 {[%clk
00:46:05]} {[%emt 00:06:32]} 14. h3 {[%clk 00:30:37]} {[%emt 00:05:47]} gxf4+
{[%clk 00:45:51]} {[%emt 00:00:44]} 15. Kh2 {[%clk 00:30:58]} {[%emt 00:00:08]}
O-O-O {[%clk 00:40:54]} {[%emt 00:05:27]} 16. Nc2 {[%clk 00:25:07]} {[%emt
00:06:21]} Bxc2 {[%clk 00:37:48]} {[%emt 00:03:35]} 17. Qxc2 {[%clk 00:23:52]}
{[%emt 00:01:45]} Be3 {[%clk 00:29:06]} {[%emt 00:09:12]} 18. Bd3 {[%clk
00:16:29]} {[%emt 00:07:53]} Kb8 {[%clk 00:24:03]} {[%emt 00:05:34]} 19. Rf1
{[%clk 00:08:38]} {[%emt 00:08:20]} Nxe5 {[%clk 00:19:22]} {[%emt 00:05:11]} 20.
Be4 {[%clk 00:05:20]} {[%emt 00:03:47]} Rd4 {[%clk 00:16:39]} {[%emt 00:03:14]}
21. Bf3 {[%clk 00:03:10]} {[%emt 00:02:40]} Qd6 {[%clk 00:16:36]} {[%emt
00:00:33]} 22. Bxe3 {[%clk 00:02:53]} {[%emt 00:00:47]} fxe3 {[%clk 00:16:47]}
{[%emt 00:00:20]} 23. Kh1 {[%clk 00:03:08]} {[%emt 00:00:15]} Nxf3 {[%clk
00:14:58]} {[%emt 00:02:19]} 24. Rxf3 {[%clk 00:03:09]} {[%emt 00:00:29]} Rd2
{[%clk 00:14:49]} {[%emt 00:00:40]} 25. Qc3 {[%clk 00:03:27]} {[%emt 00:00:12]}
Rg8 {[%clk 00:14:31]} {[%emt 00:00:48]} 26. Rxe3 {[%clk 00:01:25]} {[%emt
00:02:32]} Rdxg2 {[%clk 00:12:58]} {[%emt 00:02:03]} 27. Qe5 {[%clk 00:01:30]}
{[%emt 00:00:25]} Qxe5 {[%clk 00:11:40]} {[%emt 00:01:48]} 28. Rxe5 {[%clk
00:01:55]} {[%emt 00:00:05]} Rxb2 {[%emt 00:00:55]} 29. a4 {[%clk 00:01:47]} a6
{[%clk 00:11:10]} {[%emt 00:01:14]} 30. Rh5 {[%clk 00:01:21]} {[%emt 00:00:55]}
Rb4 {[%clk 00:10:41]} {[%emt 00:00:59]} 31. Rxh7 {[%clk 00:01:30]} {[%emt
00:00:21]} Rf8 {[%clk 00:11:06]} {[%emt 00:00:05]} 32. Kg2 {[%clk 00:01:23]}
{[%emt 00:00:36]} b5 {[%clk 00:11:00]} {[%emt 00:00:37]} 33. axb5 {[%clk
00:01:32]} {[%emt 00:00:21]} axb5 {[%clk 00:11:28]} {[%emt 00:00:01]} 34. h4
{[%clk 00:01:48]} {[%emt 00:00:14]} Kb7 {[%clk 00:11:30]} {[%emt 00:00:28]} 35.
Rh1 {[%clk 00:01:41]} {[%emt 00:00:36]} Rc4 {[%clk 00:11:15]} {[%emt 00:00:46]}
36. h5 {[%clk 00:01:58]} {[%emt 00:00:13]} b4 {[%clk 00:10:33]} {[%emt
00:01:12]} 37. Rg7 {[%clk 00:01:52]} {[%emt 00:00:35]} b3 {[%clk 00:10:52]}
{[%emt 00:00:11]} 38. Rg3 {[%clk 00:01:51]} {[%emt 00:00:31]} Rb4 {[%clk
00:11:13]} {[%emt 00:00:10]} 39. h6 {[%clk 00:02:01]} {[%emt 00:00:19]} b2
{[%clk 00:11:21]} {[%emt 00:00:22]} 40. Rb1 {[%clk 00:02:16]} {[%emt 00:00:15]}
Rh8 {[%clk 00:11:34]} {[%emt 00:00:18]} 41. Rh3 {[%clk 00:02:40]} {[%emt
00:00:06]} Rh7 {[%clk 00:11:30]} {[%emt 00:00:34]} 42. Kf2 {[%clk 00:03:03]}
{[%emt 00:00:07]} Kc8 {[%clk 00:10:10]} {[%emt 00:01:50]} 43. Ke2 {[%clk
00:03:02]} {[%emt 00:00:31]} Rb6 {[%clk 00:10:35]} {[%emt 00:00:06]} 44. Rf3
{[%clk 00:01:06]} {[%emt 00:02:25]} Rbxh6 {[%clk 00:10:36]} {[%emt 00:00:29]}
45. Kd2 {[%clk 00:01:23]} {[%emt 00:00:12]} Rc6 {[%clk 00:10:25]} {[%emt
00:00:42]} 46. Rf2 {[%clk 00:01:35]} {[%emt 00:00:18]} Rb6 {[%clk 00:10:21]}
{[%emt 00:00:34]} 47. Kc2 {[%clk 00:01:48]} {[%emt 00:00:17]} Kd7 {[%clk
00:09:59]} {[%emt 00:00:53]} 48. Rd1+ {[%clk 00:02:04]} {[%emt 00:00:14]} Ke7
{[%clk 00:09:54]} {[%emt 00:00:36]} 49. Kb1 {[%clk 00:01:53]} {[%emt 00:00:40]}
Rh5 {[%clk 00:06:22]} {[%emt 00:04:01]} 50. Rdf1 {[%clk 00:26:06]} {[%emt
00:06:17]} f6 {[%clk 00:36:37]} {[%emt 00:00:16]} 51. Re1+ {[%clk 00:24:50]}
{[%emt 00:01:45]} Re5 {[%clk 00:36:55]} {[%emt 00:00:12]} 52. Rh1 {[%clk
00:24:46]} {[%emt 00:00:33]} Ra5 {[%clk 00:37:01]} {[%emt 00:00:26]} 53. Rh7+
{[%clk 00:24:39]} {[%emt 00:00:36]} Ke6 {[%clk 00:36:59]} {[%emt 00:00:32]} 54.
Re2+ {[%clk 00:25:00]} {[%emt 00:00:09]} Re5 {[%clk 00:36:04]} {[%emt
00:01:26]} 55. Rxe5+ {[%clk 00:25:25]} {[%emt 00:00:05]} Kxe5 {[%clk 00:36:19]}
{[%emt 00:00:14]} 56. Rxc7 {[%clk 00:25:49]} {[%emt 00:00:06]} f5 {[%clk
00:36:36]} {[%emt 00:00:13]} 0-1

[Event "2. Itzehoer Schach Open"]
[Site "Itzehoe, Germany"]
[Date "2023.04.30"]
[Round "4.21"]
[White "Kitschke, Heiko"]
[Black "Marzik, Arne"]
[Result "1-0"]
[TimeControl "90 min / 40 Züge + 30 min + 30 Sek pro Zug"]
[WhiteElo "2027"]
[BlackElo "1545"]

1. e4 {[%clk 01:24:43]} {[%emt 00:06:16]} e6 {[%clk 01:30:47]} {[%emt
00:00:13]} 2. d4 {[%clk 01:24:29]} {[%emt 00:00:44]} d5 {[%clk 01:31:11]}
{[%emt 00:00:06]} 3. Nd2 {[%clk 01:24:57]} {[%emt 00:00:03]} c5 {[%clk
01:31:15]} {[%emt 00:00:26]} 4. exd5 {[%clk 01:25:15]} {[%emt 00:00:11]} exd5
{[%clk 01:31:36]} {[%emt 00:00:09]} 5. Ngf3 {[%clk 01:25:41]} {[%emt 00:00:05]}
Nc6 {[%clk 01:31:56]} {[%emt 00:00:09]} 6. dxc5 {[%clk 01:25:37]} {[%emt
00:00:34]} Bxc5 {[%clk 01:32:15]} {[%emt 00:00:11]} 7. Nb3 {[%clk 01:26:01]}
{[%emt 00:00:07]} Bb6 {[%clk 01:32:22]} {[%emt 00:00:22]} 8. c3 {[%clk
01:26:07]} {[%emt 00:00:24]} Nf6 {[%clk 01:32:35]} {[%emt 00:00:17]} 9. Be2
{[%clk 01:25:57]} {[%emt 00:00:38]} O-O {[%clk 01:32:53]} {[%emt 00:00:13]} 10.
O-O {[%clk 01:26:13]} {[%emt 00:00:15]} Re8 {[%clk 01:29:27]} {[%emt 00:03:56]}
11. Bg5 {[%clk 01:25:38]} {[%emt 00:01:03]} Qd6 {[%clk 01:24:40]} {[%emt
00:05:18]} 12. Nbd2 {[%clk 01:06:57]} {[%emt 00:19:11]} h6 {[%clk 01:22:24]}
{[%emt 00:02:47]} 13. Bh4 {[%clk 01:04:11]} {[%emt 00:03:15]} Bf5 {[%clk
01:21:42]} {[%emt 00:01:11]} 14. Nc4 {[%clk 01:02:31]} {[%emt 00:02:12]} Qe6
{[%clk 01:12:55]} {[%emt 00:09:13]} 15. Nxb6 {[%clk 01:01:57]} {[%emt
00:01:08]} axb6 {[%clk 01:13:19]} {[%emt 00:00:06]} 16. Re1 {[%clk 00:57:35]}
{[%emt 00:04:50]} Ra4 {[%clk 01:10:20]} {[%emt 00:03:32]} 17. Qxa4 {[%clk
00:56:57]} {[%emt 00:01:07]} 1-0